Workbook

Sheet Transition Matrices
A1: Model Inputs | H1: Transition Matrix: Treatment A
AA2: Transition Matrix: Treatment B
J3: SILENT | K3: ACTIVE | L3: COMPL | M3: DEAD | AC3: SILENT | AD3: ACTIVE | AE3: COMPL | AF3: DEAD
I4: SILENT | J4: =1-K4-L4-M4 -> 0.904 | K4: =p_active_A -> 0.088 | L4: =p_compl_sil_A -> 0.008 | M4: =p_dead_sil_A -> 0 | AB4: SILENT | AC4: =1-AD4-AE4-AF4 ->  | AD4: =p_active_B -> NA | AE4: =p_compl_sil_B -> 0.1230769231 | AF4: =p_dead_sil_B -> 0.01538461538
I5: ACTIVE | J5: =p_success_A -> 0.2119047619 | K5: =1-J5-L5-M5 -> 0.6892857143 | L5: =p_compl_act_A -> 0.09761904762 | M5: =p_dead_act_A -> 0.00119047619 | AB5: ACTIVE | AC5: =p_success_B -> 0.2119047619 | AD5: =1-AC5-AE5-AF5 -> 0.6892857143 | AE5: =p_compl_act_B -> 0.09761904762 | AF5: =p_dead_act_B -> 0.00119047619
I6: COMPL | J6: 0 | K6: 0 | L6: =1-M6 -> 0.9965059399 | M6: =p_dead_cmp_A -> 0.003494060098 | AB6: COMPL | AC6: 0 | AD6: 0 | AE6: =1-AF6 -> 0.9965059399 | AF6: =p_dead_cmp_B -> 0.003494060098 | AQ6: Incremental analysis
I7: DEAD | J7: 0 | K7: 0 | L7: 0 | M7: 1 | AB7: DEAD | AC7: 0 | AD7: 0 | AE7: 0 | AF7: 1
AT9: COSTS | AU9: OUTCOMES | AV9: NET BENEFIT
AR10: Treatment A | AT10: =$R$87 -> 14179.82738 | AU10: =$V$87 -> 1.027897647 | AV10: =AU10*lambda-AT10 -> 16657.10203
AR11: Treatment B | AT11: =$AK$87 ->  | AU11: =$AO$87 ->  | AV11: =AU11*lambda-AT11 -> 
AR14: Incremental | AT14: =AT11-AT10 -> 
AT15: for | AU15: =AU11-AU10 ->  | AV15: QALYs
AR17: ICER | AT17: =AT14/AU15 ->  | AU17: per QALY
H19: TREATMENT A | AA19: TREATMENT B
J20: PROBABILITIES | O20: COSTS | S20: OUTCOMES | AC20: PROBABILITIES | AH20: COSTS | AL20: OUTCOMES
A21: PROBABILITIES | B21: Treatment A | C21: Treatment B | H21: YEARS | I21: PERIOD | J21: SILENT | K21: ACTIVE | L21: COMPL | M21: DEAD | N21: discount | O21: SILENT | P21: ACTIVE | Q21: COMPL | R21: DEAD | S21: SILENT | T21: ACTIVE | U21: COMPL | V21: DEAD | AA21: YEARS | AB21: PERIOD | AC21: SILENT | AD21: ACTIVE | AE21: COMPL | AF21: DEAD | AG21: discount | AH21: SILENT | AI21: ACTIVE | AJ21: COMPL | AK21: DEAD | AL21: SILENT | AM21: ACTIVE | AN21: COMPL | AO21: DEAD
A22: p_active | B22: =Parameters!D22 -> 0.088 | C22: =Parameters!D32 -> NA | H22: =TEXT((I22-MOD(I22-1,12))/12,"0")&"."&TEXT(MOD(I22-1,12), "00") -> 0.00 | I22: 1 | J22: 0 | K22: 1 | L22: 0 | M22: 0 | N22: 1 | O22: =c_sil_A*J22*N22 -> 0 | P22: =c_act_A*K22*N22 -> 122.4295517 | Q22: =c_compl_A*L22*N22 -> 0 | R22: =c_dead_A*M22*N22 -> 0 | S22: =u_sil*J22*N22 -> 0 | T22: =u_act*K22*N22 -> 0.05441666667 | U22: =u_compl*L22*N22 -> 0 | V22: =u_dead*M22*N22 -> 0 | AA22: =TEXT((AB22-MOD(AB22-1,12))/12,"0")&"."&TEXT(MOD(AB22-1,12), "00") -> 0.00 | AB22: 1 | AC22: 0 | AD22: 1 | AE22: 0 | AF22: 0 | AG22: 1 | AH22: =c_sil_B*AC22*AG22 -> 0 | AI22: =c_act_B*AD22*AG22 -> 484.4295517 | AJ22: =c_compl_B*AE22*AG22 -> 0 | AK22: =c_dead_B*AF22*AG22 -> 0 | AL22: =u_sil*AC22*AG22 -> 0 | AM22: =u_act*AD22*AG22 -> 0.05441666667 | AN22: =u_compl*AE22*AG22 -> 0 | AO22: =u_dead*AF22*AG22 -> 0
A23: p_success | B23: =Parameters!D36 -> 0.2119047619 | C23: =Parameters!D36 -> 0.2119047619 | H23: =TEXT((I23-MOD(I23-1,12))/12,"0")&"."&TEXT(MOD(I23-1,12), "00") -> 0.01 | I23: =1+I22 -> 2 | J23: =MMULT(J22:M22,J$4:M$7) -> 0.2119047619 | K23: 0.6892857143 | L23: 0.09761904762 | M23: 0.00119047619 | N23: =N22 -> 1 | O23: =c_sil_A*J23*N23 -> 13.03629661 | P23: 84.388941 | Q23: 38.75443354 | R23: 0 | S23: 0.0144625 | T23: 0.03750863095 | U23: -0.001114484127 | V23: 0 | AA23: =TEXT((AB23-MOD(AB23-1,12))/12,"0")&"."&TEXT(MOD(AB23-1,12), "00") -> 0.01 | AB23: =1+AB22 -> 2 | AC23: =MMULT(AC22:AF22,AC$4:AF$7) ->  | AG23: =AG22 -> 1
A24: p_compl_sil | B24: =Parameters!D23 -> 0.008 | C24: =Parameters!D33 -> 0.1230769231 | H24: 0.02 | I24: =1+I23 -> 3 | J24: =MMULT(J23:M23,J$4:M$7) -> 0.3376248299 | K24: 0.493762415 | L24: 0.1662606139 | M24: 0.002352141241 | N24: =N23 -> 1 | O24: 20.77054515 | P24: 60.45111111 | Q24: 66.00490444 | R24: 0 | S24: 0.02304289464 | T24: 0.02686890475 | U24: -0.001898142008 | V24: 0 | AA24: 0.02 | AB24: =1+AB23 -> 3 | AC24: =MMULT(AC23:AF23,AC$4:AF$7) ->  | AG24: =AG23 -> 1
A25: p_compl_act | B25: =Parameters!D38 -> 0.09761904762 | C25: =Parameters!D38 -> 0.09761904762 | H25: 0.03 | I25: 4 | J25: =MMULT(J24:M24,J$4:M$7) -> 0.4098434532 | K25: 0.3700543639 | L25: 0.2165813046 | M25: 0.003520878216 | N25: 1 | O25: 25.21340611 | P25: 45.30558988 | Q25: 85.98204941 | R25: 0 | S25: 0.02797181568 | T25: 0.02013712497 | U25: -0.002472636561 | V25: 0 | AA25: 0.03 | AB25: 4 | AC25: =MMULT(AC24:AF24,AC$4:AF$7) ->  | AG25: 1
A26: p_dead_sil | B26: =Parameters!D24 -> 0 | C26: =Parameters!D34 -> 0.01538461538 | H26: 0.04 | I26: 5 | J26: =MMULT(J25:M25,J$4:M$7) -> 0.4489147636 | K26: 0.2911394104 | L26: 0.2552276587 | M26: 0.00471816722 | N26: 1 | O26: 27.61705757 | P26: 35.6440675 | Q26: 101.324522 | R26: 0 | S26: 0.03063843262 | T26: 0.01584283625 | U26: -0.002913849104 | V26: 0 | AA26: 0.04 | AB26: 5 | AC26: =MMULT(AC25:AF25,AC$4:AF$7) ->  | AG26: 1
A27: p_dead_act | B27: =Parameters!D39 -> 0.00119047619 | C27: =Parameters!D39 -> 0.00119047619 | H27: 0.05 | I27: 6 | J27: =MMULT(J26:M26,J$4:M$7) -> 0.4675127738 | K27: 0.2401827357 | L27: 0.286347948 | M27: 0.005956542535 | N27: 1 | O27: 28.76119976 | P27: 29.40546466 | Q27: 113.6791722 | R27: 0 | S27: 0.03190774681 | T27: 0.01306994387 | U27: -0.003269139073 | V27: 0 | AA27: 0.05 | AB27: 6 | AC27: =MMULT(AC26:AF26,AC$4:AF$7) ->  | AG27: 1
A28: p_dead_cmp | B28: =Parameters!D42 -> 0.003494060098 | C28: =Parameters!D42 -> 0.003494060098 | H28: 0.06 | I28: 7 | J28: =MMULT(J27:M27,J$4:M$7) -> 0.4735274129 | K28: 0.2066956526 | L28: 0.3125339432 | M28: 0.007242991302 | N28: 1 | O28: 29.13121796 | P28: 25.30565609 | Q28: 124.0749242 | R28: 0 | S28: 0.03231824593 | T28: 0.01124768843 | U28: -0.003568095851 | V28: 0 | AA28: 0.06 | AB28: 7 | AC28: =MMULT(AC27:AF27,AC$4:AF$7) ->  | AG28: 1
H29: 0.07 | I29: 8 | J29: =MMULT(J28:M28,J$4:M$7) -> 0.4718685743 | K29: 0.1841427729 | L29: 0.3354075829 | M29: 0.008581069935 | N29: 1 | O29: 29.02916687 | P29: 22.54451713 | Q29: 133.1556822 | R29: 0 | S29: 0.0322050302 | T29: 0.01002043589 | U29: -0.003829236571 | V29: 0 | AA29: 0.07 | AB29: 8 | AC29: =MMULT(AC28:AF28,AC$4:AF$7) ->  | AG29: 1
A30: COSTS | B30: Treatment A | C30: Treatment B | H30: 0.08 | I30: 9 | J30: =MMULT(J29:M29,J$4:M$7) -> 0.4655899216 | K30: 0.1684514173 | L30: 0.3559864393 | M30: 0.009972221774 | N30: 1 | O30: 28.64290666 | P30: 20.6234315 | Q30: 141.325419 | R30: 0 | S30: 0.03177651215 | T30: 0.009166564624 | U30: -0.004064178516 | V30: 0 | AA30: 0.08 | AB30: 9 | AC30: =MMULT(AC29:AF29,AC$4:AF$7) ->  | AG30: 1
A31: SILENT | B31: =Parameters!D7+Parameters!D10 -> 61.51960197 | C31: =Parameters!D7+Parameters!D11 -> 423.519602 | H31: 0.09 | I31: 10 | J31: =MMULT(J30:M30,J$4:M$7) -> 0.4565889466 | K31: 0.1570830686 | L31: 0.3749113876 | M31: 0.01141659719 | N31: 1 | O31: 28.08917026 | P31: 19.23160967 | Q31: 148.8385598 | R31: 0 | S31: 0.03116219561 | T31: 0.008547936982 | U31: -0.004280238342 | V31: 0 | AA31: 0.09 | AB31: 10 | AC31: =MMULT(AC30:AF30,AC$4:AF$7) ->  | AG31: 1
A32: ACTIVE | B32: =Parameters!D8+Parameters!D10 -> 122.4295517 | C32: =Parameters!D8+Parameters!D11 -> 484.4295517 | H32: 0.10 | I32: 11 | J32: =MMULT(J31:M31,J$4:M$7) -> 0.446043058 | K32: 0.1484549424 | L32: 0.3925884358 | M32: 0.01291356376 | N32: 1 | O32: 27.44039139 | P32: 18.17527205 | Q32: 155.8562884 | R32: 0 | S32: 0.03044243871 | T32: 0.008078423117 | U32: -0.004482051309 | V32: 0 | AA32: 0.10 | AB32: 11 | AC32: =MMULT(AC31:AF31,AC$4:AF$7) ->  | AG32: 1
A33: COMPL | B33: =Parameters!D9 -> 396.9966362 | C33: =Parameters!E9 -> 396.9966362 | H33: 0.11 | I33: 12 | J33: =MMULT(J32:M32,J$4:M$7) -> 0.4346812336 | K33: 0.1415796601 | L33: 0.4092770828 | M33: 0.01446202342 | N33: 1 | O33: 26.74141648 | P33: 17.33353432 | Q33: 162.4816252 | R33: 0 | S33: 0.0296669942 | T33: 0.007704293172 | U33: -0.004672580029 | V33: 0 | AA33: 0.11 | AB33: 12 | AC33: =MMULT(AC32:AF32,AC$4:AF$7) ->  | AG33: 1
A34: DEAD | B34: 0 | C34: 0 | H34: 1.00 | I34: 13 | J34: =MMULT(J33:M33,J$4:M$7) -> 0.4229532394 | K34: 0.1358407857 | L34: 0.4251453655 | M34: 0.01606060936 | N34: =N22/(1+disc) -> 0.9661835749 | O34: 25.14001443 | P34: 16.06852802 | Q34: 163.0737005 | R34: 0 | S34: 0.02789039477 | T34: 0.007142031649 | U34: -0.004689606689 | V34: 0 | AA34: 1.00 | AB34: 13 | AC34: =MMULT(AC33:AF33,AC$4:AF$7) ->  | AG34: =AG22/(1+disc) -> 0.9661835749
H35: 1.01 | I35: 14 | J35: =MMULT(J34:M34,J$4:M$7) -> 0.4111350378 | K35: 0.1308529981 | L35: 0.4403041561 | M35: 0.01770780804 | N35: 0.9661835749 | O35: 24.43754964 | P35: 15.4785255 | Q35: 168.8881825 | R35: 0 | S35: 0.02711107858 | T35: 0.006879791284 | U35: -0.004856817181 | V35: 0 | AA35: 1.01 | AB35: 14 | AC35: =MMULT(AC34:AF34,AC$4:AF$7) ->  | AG35: 0.9661835749
A36: UTILITIES | B36: Value per month (converted) | C36: Value per year (reference) | H36: 1.02 | I36: 15 | J36: =MMULT(J35:M35,J$4:M$7) -> 0.3993944475 | K36: 0.1263749856 | L36: 0.4548285323 | M36: 0.0194020346 | N36: 0.9661835749 | O36: 23.73969801 | P36: 14.94882399 | Q36: 174.4593211 | R36: 0 | S36: 0.02633688024 | T36: 0.006644353106 | U36: -0.005017029704 | V36: 0 | AA36: 1.02 | AB36: 15 | AC36: =MMULT(AC35:AF35,AC$4:AF$7) ->  | AG36: 0.9661835749
A37: SILENT | B37: =C37/12 -> 0.06825 | C37: =Parameters!D15 -> 0.819 | H37: 1.03 | I37: 16 | J37: =MMULT(J36:M36,J$4:M$7) -> 0.3878320418 | K37: 0.1222551836 | L37: 0.4687710954 | M37: 0.02114167924 | N37: 0.9661835749 | O37: 23.05243753 | P37: 14.46149499 | Q37: 179.8072928 | R37: 0 | S37: 0.02557443174 | T37: 0.00642774838 | U37: -0.005170824482 | V37: 0 | AA37: 1.03 | AB37: 16 | AC37: =MMULT(AC36:AF36,AC$4:AF$7) ->  | AG37: 0.9661835749
A38: ACTIVE | B38: =C38/12 -> 0.05441666667 | C38: =Parameters!D16 -> 0.653 | H38: 1.04 | I38: 17 | J38: =MMULT(J37:M37,J$4:M$7) -> 0.3765066214 | K38: 0.1183979712 | L38: 0.4821702719 | M38: 0.0229251355 | N38: 0.9661835749 | O38: 22.37926327 | P38: 14.00522757 | Q38: 184.9468368 | R38: 0 | S38: 0.02482761054 | T38: 0.006224949695 | U38: -0.005318625383 | V38: 0 | AA38: 1.04 | AB38: 17 | AC38: =MMULT(AC37:AF37,AC$4:AF$7) ->  | AG38: 0.9661835749
A39: COMPL | B39: -0.01141666667 | C39: =Parameters!D17 -> -0.137 | H39: 1.05 | I39: 18 | J39: =MMULT(J38:M38,J$4:M$7) -> 0.3654510796 | K39: 0.1147426128 | L39: 0.4950554902 | M39: 0.02475081738 | N39: 0.9661835749 | O39: 21.72213039 | P39: 13.57283734 | Q39: 189.8892409 | R39: 0 | S39: 0.02409858568 | T39: 0.006032763783 | U39: -0.005460757017 | V39: 0 | AA39: 1.05 | AB39: 18 | AC39: =MMULT(AC38:AF38,AC$4:AF$7) ->  | AG39: 0.9661835749
A40: DEAD | B40: 0 | C40: 0 | H40: 1.06 | I40: 19 | J40: =MMULT(J39:M39,J$4:M$7) -> 0.354682282 | K40: 0.1112501389 | L40: 0.5074504098 | M40: 0.02661716936 | N40: 0.9661835749 | O40: 21.08204137 | P40: 13.15971462 | Q40: 194.6435804 | R40: 0 | S40: 0.02338846932 | T40: 0.005849141761 | U40: -0.005597480365 | V40: 0 | AA40: 1.06 | AB40: 19 | AC40: =MMULT(AC39:AF39,AC$4:AF$7) ->  | AG40: 0.9661835749
H41: 1.07 | I41: 20 | J41: =MMULT(J40:M40,J$4:M$7) -> 0.3442072171 | K41: 0.1078951722 | L41: 0.5193749384 | M41: 0.02852267223 | N41: 0.9661835749 | O41: 20.45941159 | P41: 12.76285755 | Q41: 199.2174913 | R41: 0 | S41: 0.02269772229 | T41: 0.005672749394 | U41: -0.005729015021 | V41: 0 | AA41: 1.07 | AB41: 20 | AC41: =MMULT(AC40:AF40,AC$4:AF$7) ->  | AG41: 0.9661835749
A42: Other parameters | B42: Values | H42: 1.08 | I42: 21 | J42: =MMULT(J41:M41,J$4:M$7) -> 0.3340268251 | K42: 0.104660836 | L42: 0.5308464928 | M42: 0.03046584611 | N42: 0.9661835749 | O42: 19.85429693 | P42: 12.38026979 | Q42: 203.6176541 | R42: 0 | S42: 0.02202640658 | T42: 0.005502699347 | U42: -0.005855553101 | V42: 0 | AA42: 1.08 | AB42: 21 | AC42: =MMULT(AC41:AF41,AC$4:AF$7) ->  | AG42: 0.9661835749
A43: discount rate | B43: 0.035 | H43: 1.09 | I43: 22 | J43: =MMULT(J42:M42,J$4:M$7) -> 0.3241383794 | K43: 0.1015355797 | L43: 0.541880789 | M43: 0.03244525189 | N43: 0.9661835749 | O43: 19.26653535 | P43: 12.01058503 | Q43: 207.8500971 | R43: 0 | S43: 0.02137434241 | T43: 0.005338384343 | U43: -0.005977267963 | V43: 0 | AA43: 1.09 | AB43: 22 | AC43: =MMULT(AC42:AF42,AC$4:AF$7) ->  | AG43: 0.9661835749
A44: value per QALY | B44: 30000 | H44: 1.10 | I44: 23 | J44: =MMULT(J43:M43,J$4:M$7) -> 0.3145369678 | K44: 0.09851120196 | L44: 0.5524923386 | M44: 0.03445949163 | N44: 0.9661835749 | O44: 18.69583484 | P44: 11.65283313 | Q44: 211.9203864 | R44: 0 | S44: 0.02074120585 | T44: 0.005179373179 | U44: -0.006094319677 | V44: 0 | AA44: 1.10 | AB44: 23 | AC44: =MMULT(AC43:AF43,AC$4:AF$7) ->  | AG44: 0.9661835749
A45: default value per QALY | B45: 30000 | H45: 1.11 | I45: 24 | J45: =MMULT(J44:M44,J$4:M$7) -> 0.3052164117 | K45: 0.09558161738 | L45: 0.5626947626 | M45: 0.0365072083 | N45: 0.9661835749 | O45: 18.14182818 | P45: 11.30629427 | Q45: 215.8337468 | R45: 0 | S45: 0.02012658947 | T45: 0.005025345906 | U45: -0.006206858493 | V45: 0 | AA45: 1.11 | AB45: 24 | AC45: =MMULT(AC44:AF44,AC$4:AF$7) ->  | AG45: 0.9661835749
H46: 2.00 | I46: 25 | J46: =MMULT(J45:M45,J$4:M$7) -> 0.2961698361 | K46: 0.09274208764 | L46: 0.5725009911 | M46: 0.03858708526 | N46: 0.9335107004 | O46: 17.00879874 | P46: 10.59942796 | Q46: 212.1692153 | R46: 0 | S46: 0.01886960378 | T46: 0.004711162705 | U46: -0.006101475396 | V46: 0 | AA46: 2.00 | AB46: 25 | AC46: =MMULT(AC45:AF45,AC$4:AF$7) ->  | AG46: 0.9335107004
H47: 2.01 | I47: 26 | J47: =MMULT(J46:M46,J$4:M$7) -> 0.2873900218 | K47: 0.08998874169 | L47: 0.5819233911 | M47: 0.04069784538 | N47: 0.9335107004 | O47: 16.50458097 | P47: 10.28474999 | Q47: 215.6611625 | R47: 0 | S47: 0.01831022333 | T47: 0.004571296749 | U47: -0.006201895384 | V47: 0 | AA47: 2.01 | AB47: 26 | AC47: =MMULT(AC46:AF46,AC$4:AF$7) ->  | AG47: 0.9335107004
H48: 2.02 | I48: 27 | J48: =MMULT(J47:M47,J$4:M$7) -> 0.2788696226 | K48: 0.08731827601 | L48: 0.5909738513 | M48: 0.04283825013 | N48: 0.9335107004 | O48: 16.0152612 | P48: 9.979544342 | Q48: 219.0152686 | R48: 0 | S48: 0.01776737076 | T48: 0.00443564099 | U48: -0.006298351391 | V48: 0 | AA48: 2.02 | AB48: 27 | AC48: =MMULT(AC47:AF47,AC$4:AF$7) ->  | AG48: 0.9335107004
H49: 2.03 | I49: 28 | J49: =MMULT(J48:M48,J$4:M$7) -> 0.2706012973 | K49: 0.08472776704 | L49: 0.599663837 | M49: 0.04500709861 | N49: 0.9335107004 | O49: 15.54041784 | P49: 9.683476894 | Q49: 222.2357826 | R49: 0 | S49: 0.01724057835 | T49: 0.004304046915 | U49: -0.006390965614 | V49: 0 | AA49: 2.03 | AB49: 28 | AC49: =MMULT(AC48:AF48,AC$4:AF$7) ->  | AG49: 0.9335107004
H50: 2.04 | I50: 29 | J50: =MMULT(J49:M49,J$4:M$7) -> 0.2625777901 | K50: 0.08221455359 | L50: 0.6080044299 | M50: 0.04720322649 | N50: 0.9335107004 | O50: 15.07963418 | P50: 9.396243496 | Q50: 225.3268113 | R50: 0 | S50: 0.01672938381 | T50: 0.004176379339 | U50: -0.006479856153 | V50: 0 | AA50: 2.04 | AB50: 29 | AC50: =MMULT(AC49:AF49,AC$4:AF$7) ->  | AG50: 0.9335107004
H51: 2.05 | I51: 30 | J51: =MMULT(J50:M50,J$4:M$7) -> 0.2547919776 | K51: 0.07977616282 | L51: 0.6160063546 | M51: 0.04942550497 | N51: 0.9335107004 | O51: 14.63250115 | P51: 9.11756153 | Q51: 228.2923295 | R51: 0 | S51: 0.01623333331 | T51: 0.004052512647 | U51: -0.00656513731 | V51: 0 | AA51: 2.05 | AB51: 30 | AC51: =MMULT(AC50:AF50,AC$4:AF$7) ->  | AG51: 0.9335107004
H52: 2.06 | I52: 31 | J52: =MMULT(J51:M51,J$4:M$7) -> 0.2472368966 | K52: 0.0774102634 | L52: 0.6236800002 | M52: 0.05167283982 | N52: 0.9335107004 | O52: 14.19861884 | P52: 8.84716455 | Q52: 231.1361872 | R52: 0 | S52: 0.01575198319 | T52: 0.003932328409 | U52: -0.006646919806 | V52: 0 | AA52: 2.06 | AB52: 31 | AC52: =MMULT(AC51:AF51,AC$4:AF$7) ->  | AG52: 0.9335107004
H53: 2.07 | I53: 32 | J53: =MMULT(J52:M52,J$4:M$7) -> 0.2399057579 | K53: 0.0751146356 | L53: 0.6310354362 | M53: 0.0539441703 | N53: 0.9335107004 | O53: 13.77759736 | P53: 8.584798864 | Q53: 233.8621163 | R53: 0 | S53: 0.01528490091 | T53: 0.003815713867 | U53: -0.006725310957 | V53: 0 | AA53: 2.07 | AB53: 32 | AC53: =MMULT(AC52:AF52,AC$4:AF$7) ->  | AG53: 0.9335107004
H54: 2.08 | I54: 33 | J54: =MMULT(J53:M53,J$4:M$7) -> 0.2327919541 | K54: 0.07288715195 | L54: 0.6380824257 | M54: 0.05623846822 | N54: 0.9335107004 | O54: =c_sil_A*J54*N54 -> 13.36905726 | P54: =c_act_A*K54*N54 -> 8.330221324 | Q54: =c_compl_A*L54*N54 -> 236.4737349 | R54: =c_dead_A*M54*N54 -> 0 | S54: =u_sil*J54*N54 -> 0.01483166549 | T54: =u_act*K54*N54 -> 0.003702560948 | U54: =u_compl*L54*N54 -> -0.006800414815 | V54: =u_dead*M54*N54 -> 0 | AA54: 2.08 | AB54: 33 | AC54: =MMULT(AC53:AF53,AC$4:AF$7) ->  | AG54: 0.9335107004 | AH54: =c_sil_B*AC54*AG54 ->  | AI54: =c_act_B*AD54*AG54 ->  | AJ54: =c_compl_B*AE54*AG54 ->  | AK54: =c_dead_B*AF54*AG54 ->  | AL54: =u_sil*AC54*AG54 ->  | AM54: =u_act*AD54*AG54 ->  | AN54: =u_compl*AE54*AG54 ->  | AO54: =u_dead*AF54*AG54 -> 
H55: 2.09 | I55: 34 | J55: =MMULT(J54:M54,J$4:M$7) -> 0.2258890611 | K55: 0.07072576456 | L55: 0.6448304373 | M55: 0.05855473698 | N55: 0.9335107004 | O55: 12.97262959 | P55: 8.08319788 | Q55: 238.9745521 | R55: 0 | S55: 0.01439186765 | T55: 0.003592765623 | U55: -0.006872332292 | V55: 0 | AA55: 2.09 | AB55: 34 | AC55: =MMULT(AC54:AF54,AC$4:AF$7) ->  | AG55: 0.9335107004
H56: 2.10 | I56: 35 | J56: =MMULT(J55:M55,J$4:M$7) -> 0.2191908375 | K56: 0.06862849652 | L56: 0.6512886553 | M56: 0.06089201062 | N56: 0.9335107004 | O56: 12.58795592 | P56: 7.843502591 | Q56: 241.3679716 | R56: 0 | S56: 0.01396510972 | T56: 0.003486227468 | U56: -0.00694116127 | V56: 0 | AA56: 2.10 | AB56: 35 | AC56: =MMULT(AC55:AF55,AC$4:AF$7) ->  | AG56: 0.9335107004
H57: 2.11 | I57: 36 | J57: =MMULT(J56:M56,J$4:M$7) -> 0.2126912224 | K57: 0.06659343595 | L57: 0.6574659888 | M57: 0.06324935291 | N57: 0.9335107004 | O57: 12.21468818 | P57: 7.61091695 | Q57: 243.6572951 | R57: 0 | S57: 0.01355100556 | T57: 0.00338284936 | U57: -0.007006996699 | V57: 0 | AA57: 2.11 | AB57: 36 | AC57: =MMULT(AC56:AF56,AC$4:AF$7) ->  | AG57: 0.9335107004
H58: 3.00 | I58: 37 | J58: =MMULT(J57:M57,J$4:M$7) -> 0.2063843312 | K58: 0.06461873163 | L58: 0.6633710807 | M58: 0.06562585649 | N58: 0.9019427057 | O58: 11.45167963 | P58: 7.135487326 | Q58: 237.5321022 | R58: 0 | S58: 0.01270452197 | T58: 0.003171533587 | U58: -0.006830850909 | V58: 0 | AA58: 3.00 | AB58: 37 | AC58: =MMULT(AC57:AF57,AC$4:AF$7) ->  | AG58: 0.9019427057
H59: 3.01 | I59: 38 | J59: =MMULT(J58:M58,J$4:M$7) -> 0.2002644523 | K59: 0.06270258973 | L59: 0.6690123159 | M59: 0.06802064198 | N59: 0.9019427057 | O59: 11.11210496 | P59: 6.923898428 | Q59: 239.5520493 | R59: 0 | S59: 0.01232779698 | T59: 0.003077487972 | U59: -0.00688893972 | V59: 0 | AA59: 3.01 | AB59: 38 | AC59: =MMULT(AC58:AF58,AC$4:AF$7) ->  | AG59: 0.9019427057
H60: 3.02 | I60: 39 | J60: =MMULT(J59:M59,J$4:M$7) -> 0.1943260423 | K60: 0.06084327116 | L60: 0.6743978294 | M60: 0.07043285715 | N60: 0.9019427057 | O60: 10.78259947 | P60: 6.718584213 | Q60: 241.4804305 | R60: 0 | S60: 0.01196224277 | T60: 0.002986231286 | U60: -0.006944395317 | V60: 0 | AA60: 3.02 | AB60: 39 | AC60: =MMULT(AC59:AF59,AC$4:AF$7) ->  | AG60: 0.9019427057
H61: 3.03 | I61: 40 | J61: =MMULT(J60:M60,J$4:M$7) -> 0.1885637211 | K61: 0.05903908934 | L61: 0.6795355134 | M61: 0.07286167617 | N61: 0.9019427057 | O61: 10.46286466 | P61: 6.519358444 | Q61: 243.3200719 | R61: 0 | S61: 0.01160752817 | T61: 0.002897680751 | U61: -0.00699729897 | V61: 0 | AA61: 3.03 | AB61: 40 | AC61: =MMULT(AC60:AF60,AC$4:AF$7) ->  | AG61: 0.9019427057
H62: 3.04 | I62: 41 | J62: =MMULT(J61:M61,J$4:M$7) -> 0.182972268 | K62: 0.05728840832 | L62: 0.6844330249 | M62: 0.07530629872 | N62: 0.9019427057 | O62: 10.15261083 | P62: 6.326040472 | Q62: 245.0737151 | R62: 0 | S62: 0.0112633318 | T62: 0.002811756074 | U62: -0.007047729524 | V62: 0 | AA62: 3.04 | AB62: 41 | AC62: =MMULT(AC61:AF61,AC$4:AF$7) ->  | AG62: 0.9019427057
H63: 3.05 | I63: 42 | J63: =MMULT(J62:M62,J$4:M$7) -> 0.1775466168 | K63: 0.05558964104 | L63: 0.6890977928 | M63: 0.07776594933 | N63: 0.9019427057 | O63: 9.85155687 | P63: 6.138455044 | Q63: 246.7440202 | R63: 0 | S63: 0.01092934179 | T63: 0.00272837936 | U63: -0.007095763475 | V63: 0 | AA63: 3.05 | AB63: 42 | AC63: =MMULT(AC62:AF62,AC$4:AF$7) ->  | AG63: 0.9019427057
H64: 3.06 | I64: 43 | J64: =MMULT(J63:M63,J$4:M$7) -> 0.1722818513 | K64: 0.05394124771 | L64: 0.6935370244 | M64: 0.08023987657 | N64: 0.9019427057 | O64: 9.55943 | P64: 5.956432132 | Q64: 248.333568 | R64: 0 | S64: 0.01060525551 | T64: 0.002647475036 | U64: -0.007141475039 | V64: 0 | AA64: 3.06 | AB64: 43 | AC64: =MMULT(AC63:AF63,AC$4:AF$7) ->  | AG64: 0.9019427057
H65: 3.07 | I65: 44 | J65: =MMULT(J64:M64,J$4:M$7) -> 0.1671732008 | K65: 0.05234173437 | L65: 0.6977577124 | M65: 0.08272735239 | N65: 0.9019427057 | O65: 9.275965514 | P65: 5.779806765 | Q65: 249.8448622 | R65: 0 | S65: 0.0102907793 | T65: 0.002568969777 | U65: -0.007184936219 | V65: 0 | AA65: 3.07 | AB65: 44 | AC65: =MMULT(AC64:AF64,AC$4:AF$7) ->  | AG65: 0.9019427057
H66: 3.08 | I66: 45 | J66: =MMULT(J65:M65,J$4:M$7) -> 0.1622160363 | K66: 0.05078965143 | L66: 0.7017666409 | M66: 0.08522767136 | N66: =N54/(1+disc) -> 0.9019427057 | O66: 9.000906551 | P66: 5.608418874 | Q66: 251.2803321 | R66: 0 | S66: 0.009985628198 | T66: 0.002492792436 | U66: -0.007226216874 | V66: 0 | AA66: 3.08 | AB66: 45 | AC66: =MMULT(AC65:AF65,AC$4:AF$7) ->  | AG66: =AG54/(1+disc) -> 0.9019427057
H67: 3.09 | I67: 46 | J67: =MMULT(J66:M66,J$4:M$7) -> 0.1574058658 | K67: 0.04928359236 | L67: 0.7055703918 | M67: 0.08774015005 | N67: 0.9019427057 | O67: 8.73400387 | P67: 5.442113143 | Q67: 252.6423344 | R67: 0 | S67: 0.009689525697 | T67: 0.002418873979 | U67: -0.007265384779 | V67: 0 | AA67: 3.09 | AB67: 46 | AC67: =MMULT(AC66:AF66,AC$4:AF$7) ->  | AG67: 0.9019427057
H68: 3.10 | I68: 47 | J68: =MMULT(J67:M67,J$4:M$7) -> 0.1527383306 | K68: 0.04782219235 | L68: 0.7091753507 | M68: 0.09026412634 | N68: 0.9019427057 | O68: 8.475015614 | P68: 5.280738863 | Q68: 253.9331557 | R68: 0 | S68: 0.00940220348 | T68: 0.002347147421 | U68: -0.007302505687 | V68: 0 | AA68: 3.10 | AB68: 47 | AC68: =MMULT(AC67:AF67,AC$4:AF$7) ->  | AG68: 0.9019427057
H69: 3.11 | I69: 48 | J69: =MMULT(J68:M68,J$4:M$7) -> 0.1482092011 | K69: 0.04640412711 | L69: 0.7125877129 | M69: 0.09279895882 | N69: 0.9019427057 | O69: 8.223707101 | P69: 5.124149801 | Q69: 255.1550141 | R69: 0 | S69: 0.009123401187 | T69: 0.002277547764 | U69: -0.007337643392 | V69: 0 | AA69: 3.11 | AB69: 48 | AC69: =MMULT(AC68:AF68,AC$4:AF$7) ->  | AG69: 0.9019427057
H70: 4.00 | I70: 49 | J70: =MMULT(J69:M69,J$4:M$7) -> 0.1438143733 | K70: 0.0450281116 | L70: 0.715813489 | M70: 0.09534402612 | N70: 0.8714422277 | O70: 7.710000583 | P70: 4.804061891 | Q70: 247.642572 | R70: 0 | S70: 0.008553493895 | T70: 0.002135277235 | U70: -0.007121603658 | V70: 0 | AA70: 4.00 | AB70: 49 | AC70: =MMULT(AC69:AF69,AC$4:AF$7) ->  | AG70: 0.8714422277
H71: 4.01 | I71: 50 | J71: =MMULT(J70:M70,J$4:M$7) -> 0.1395498648 | K71: 0.04369289892 | L71: 0.71885851 | M71: 0.09789872636 | N71: 0.8714422277 | O71: 7.481376957 | P71: 4.661607675 | Q71: 248.6960263 | R71: 0 | S71: 0.008299858272 | T71: 0.002071960139 | U71: -0.007151898467 | V71: 0 | AA71: 4.01 | AB71: 50 | AC71: =MMULT(AC70:AF70,AC$4:AF$7) ->  | AG71: 0.8714422277
H72: 4.02 | I72: 51 | J72: =MMULT(J71:M71,J$4:M$7) -> 0.1354118111 | K72: 0.04239727914 | L72: 0.7217284332 | M72: 0.1004624766 | N72: 0.8714422277 | O72: 7.259532676 | P72: 4.523377636 | Q72: 249.6889039 | R72: 0 | S72: 0.008053743673 | T72: 0.002010520578 | U72: -0.007180451234 | V72: 0 | AA72: 4.02 | AB72: 51 | AC72: =MMULT(AC71:AF71,AC$4:AF$7) ->  | AG72: 0.8714422277
H73: 4.03 | I73: 52 | J73: =MMULT(J72:M72,J$4:M$7) -> 0.1313964626 | K73: 0.04114007821 | L73: 0.7244287472 | M73: 0.103034712 | N73: 0.8714422277 | O73: 7.044266714 | P73: 4.389246516 | Q73: 250.6231036 | R73: 0 | S73: 0.007814927078 | T73: 0.001950902876 | U73: -0.007207316565 | V73: 0 | AA73: 4.03 | AB73: 52 | AC73: =MMULT(AC72:AF72,AC$4:AF$7) ->  | AG73: 0.8714422277
H74: 4.04 | I74: 53 | J74: =MMULT(J73:M73,J$4:M$7) -> 0.1275001806 | K74: 0.0399201569 | L74: 0.7269647766 | M74: 0.1056148859 | N74: 0.8714422277 | O74: 6.835384004 | P74: 4.259092768 | Q74: 251.5004674 | R74: 0 | S74: 0.007583192078 | T74: 0.001893053011 | U74: -0.007232547433 | V74: 0 | AA74: 4.04 | AB74: 53 | AC74: =MMULT(AC73:AF73,AC$4:AF$7) ->  | AG74: 0.8714422277
H75: 4.05 | I75: 54 | J75: =MMULT(J74:M74,J$4:M$7) -> 0.1237194346 | K75: 0.03873640976 | L75: 0.7293416871 | M75: 0.1082024685 | N75: 0.8714422277 | O75: 6.632695266 | P75: 4.132798453 | Q75: 252.3227825 | R75: 0 | S75: 0.007358328686 | T75: 0.00183691856 | U75: -0.007256195234 | V75: 0 | AA75: 4.05 | AB75: 54 | AC75: =MMULT(AC74:AF74,AC$4:AF$7) ->  | AG75: 0.8714422277
H76: 4.06 | I76: 55 | J76: =MMULT(J75:M75,J$4:M$7) -> 0.1200507986 | K76: 0.03758776412 | L76: 0.7315644903 | M76: 0.110796947 | N76: 0.8714422277 | O76: 6.43601683 | P76: 4.010249126 | Q76: 253.0917826 | R76: 0 | S76: 0.007140133139 | T76: 0.001782448656 | U76: -0.007278309826 | V76: 0 | AA76: 4.06 | AB76: 55 | AC76: =MMULT(AC75:AF75,AC$4:AF$7) ->  | AG76: 0.8714422277
H77: 4.07 | I77: 56 | J77: =MMULT(J76:M76,J$4:M$7) -> 0.1164909481 | K77: 0.03647317911 | L77: 0.7336380482 | M77: 0.1133978246 | N77: 0.8714422277 | O77: 6.245170474 | P77: 3.891333739 | Q77: 253.8091499 | R77: 0 | S77: 0.006928407715 | T77: 0.001729593942 | U77: -0.007298939581 | V77: 0 | AA77: 4.07 | AB77: 56 | AC77: =MMULT(AC76:AF76,AC$4:AF$7) ->  | AG77: 0.8714422277
H78: 4.08 | I78: 57 | J78: =MMULT(J77:M77,J$4:M$7) -> 0.1130366575 | K78: 0.03539164475 | L78: 0.7355670773 | M78: 0.1160046205 | N78: 0.8714422277 | O78: 6.05998326 | P78: 3.775944533 | Q78: 254.4765162 | R78: 0 | S78: 0.006722960557 | T78: 0.001678306521 | U78: -0.007318131426 | V78: 0 | AA78: 4.08 | AB78: 57 | AC78: =MMULT(AC77:AF77,AC$4:AF$7) ->  | AG78: 0.8714422277
H79: 4.09 | I79: 58 | J79: =MMULT(J78:M78,J$4:M$7) -> 0.1096847964 | K79: 0.03434218099 | L79: 0.7373561537 | M79: 0.118616869 | N79: 0.8714422277 | O79: 5.880287377 | P79: 3.663976949 | Q79: 255.0954644 | R79: 0 | S79: 0.006523605496 | T79: 0.00162853992 | U79: -0.007335930884 | V79: 0 | AA79: 4.09 | AB79: 58 | AC79: =MMULT(AC78:AF78,AC$4:AF$7) ->  | AG79: 0.8714422277
H80: 4.10 | I80: 59 | J80: =MMULT(J79:M79,J$4:M$7) -> 0.1064323276 | K80: 0.03332383684 | L80: 0.7390097163 | M80: 0.1212341192 | N80: 0.8714422277 | O80: 5.705919993 | P80: 3.555329525 | Q80: 255.6675303 | R80: 0 | S80: 0.006330161885 | T80: 0.001580249041 | U80: -0.007352382122 | V80: 0 | AA80: 4.10 | AB80: 59 | AC80: =MMULT(AC79:AF79,AC$4:AF$7) ->  | AG80: 0.8714422277
H81: 4.11 | I81: 60 | J81: =MMULT(J80:M80,J$4:M$7) -> 0.1032763039 | K81: 0.03233568951 | L81: 0.7405320718 | M81: 0.1238559348 | N81: 0.8714422277 | O81: 5.536723102 | P81: 3.449903809 | Q81: 256.1942038 | R81: 0 | S81: 0.006142454431 | T81: 0.001533390125 | U81: -0.007367527984 | V81: 0 | AA81: 4.11 | AB81: 60 | AC81: =MMULT(AC80:AF80,AC$4:AF$7) ->  | AG81: 0.8714422277
H82: 5.00 | I82: 61 | J82: =MMULT(J81:M81,J$4:M$7) -> 0.1002138653 | K82: 0.03137684358 | L82: 0.7419273979 | M82: 0.1264818933 | N82: 0.8419731669 | O82: 5.190863173 | P82: 3.234400258 | Q82: 247.9970341 | R82: 0 | S82: 0.005758756562 | T82: 0.001437604551 | U82: -0.007131797135 | V82: 0 | AA82: 5.00 | AB82: 61 | AC82: =MMULT(AC81:AF81,AC$4:AF$7) ->  | AG82: 0.8419731669
O84: SILENT | P84: ACTIVE | Q84: COMPL | R84: DEAD | S84: SILENT | T84: ACTIVE | U84: COMPL | V84: DEAD | AH84: SILENT | AI84: ACTIVE | AJ84: COMPL | AK84: DEAD | AL84: SILENT | AM84: ACTIVE | AN84: COMPL | AO84: DEAD
F85: HALF CYCLE CORRECTION | H85: TOTALS | J85: =0.5*J22+SUM(J23:J81)+0.5*J82 -> 15.62283936 | K85: =0.5*K22+SUM(K23:K81)+0.5*K82 -> 7.043580501 | L85: =0.5*L22+SUM(L23:L81)+0.5*L82 -> 34.00522118 | M85: =0.5*M22+SUM(M23:M81)+0.5*M82 -> 3.328358959 | O85: =0.5*O22+SUM(O23:O81)+0.5*O82 -> 914.8507915 | P85: 833.4803752 | Q85: 12431.49621 | R85: 0 | S85: 1.014937752 | T85: 0.3704597715 | U85: -0.3574998765 | V85: 0 | AA85: TOTALS | AC85: =0.5*AC22+SUM(AC23:AC81)+0.5*AC82 ->  | AD85: =0.5*AD22+SUM(AD23:AD81)+0.5*AD82 ->  | AE85: =0.5*AE22+SUM(AE23:AE81)+0.5*AE82 ->  | AF85: =0.5*AF22+SUM(AF23:AF81)+0.5*AF82 ->  | AH85: =0.5*AH22+SUM(AH23:AH81)+0.5*AH82 -> 
Q87: TOTAL COST | R87: =O85+P85+Q85+R85 -> 14179.82738 | U87: TOTAL OUTCOME | V87: =S85+T85+U85+V85 -> 1.027897647 | AJ87: TOTAL COST | AK87: =AH85+AI85+AJ85+AK85 ->  | AN87: TOTAL OUTCOME | AO87: =AL85+AM85+AN85+AO85 -> 

Sheet Parameters
A1: Model Control | E1: opt_modeltype
A2: opt_modeltype | B2: Model Type | C2: Deterministic | E2: Deterministic
E3: Stochastic
A5: Cost Parameters
A6: Parameter | B6: Description | C6: Refers to | D6: Value Used | E6: Deterministic | F6: Stochastic | G6: Random | H6: Dist | I6: Param1 | K6: Param2 | N6: Mean | O6: SD | P6: Mean | Q6: SD
A7: Chronic, silent disease | B7: Health state specific costs | C7: Common | D7: =IF(opt_modeltype=$E$2,E7,F7) -> 23.51960197 | E7: 23.51960197 | H7: lognormal | I7: μ | K7: σ
A8: Chronic, active disease | B8: Health state specific costs | C8: Common | D8: =IF(opt_modeltype=$E$2,E8,F8) -> 84.4295517 | E8: 84.4295517 | H8: lognormal | I8: μ | K8: σ
A9: Complications | B9: Health state specific costs | C9: Common | D9: =IF(opt_modeltype=$E$2,E9,F9) -> 396.9966362 | E9: 396.9966362 | H9: gamma | I9: α | K9: b
A10: c_TxA | B10: Cost of Treament A | C10: Treatment A | D10: =IF(opt_modeltype=$E$2,E10,F10) -> 38 | E10: 38 | H10: fixed
A11: c_TxB | B11: Cost of Treament B | C11: Treatment B | D11: =IF(opt_modeltype=$E$2,E11,F11) -> 400 | E11: 400 | H11: fixed
A13: Utility Parameters
A14: Parameter | B14: Description | C14: Refers to | D14: Value Used | E14: Deterministic | F14: Stochastic | G14: Random | H14: Dist | I14: Param1 | K14: Param2 | M14: a + b | N14: Mean | O14: SD | P14: Mean | Q14: SD
A15: Chronic, silent disease | B15: Health state specific Utility | C15: Common | D15: =IF(opt_modeltype=$E$2,E15,F15) -> 0.819 | E15: 0.819 | H15: beta
A16: Chronic, active disease | B16: Health state specific Utility | C16: Common | D16: =IF(opt_modeltype=$E$2,E16,F16) -> 0.653 | E16: 0.653 | H16: beta
A17: Complications | B17: Health state specific Utility | C17: Common | D17: =IF(opt_modeltype=$E$2,E17,F17) -> -0.137 | E17: -0.137
H18: gamma
A20: Dirichlet distributions for effectiveness | G20: Random | H20: Dist | I20: Param1 | K20: Param2 | M20: Draw | N20: Mean | O20: SD | P20: Mean | Q20: SD
B21: Probability of silent disease from silent disease | C21: Treatment A | D21: NA | E21: 0.904 | H21: gamma | I21: α | K21: b
A22: p_active | B22: Probability of active disease from silent disease | C22: Treatment A | D22: =IF(opt_modeltype=$E$2,E22,F22) -> 0.088 | E22: 0.088 | H22: gamma | I22: α | K22: b
A23: p_compl_sil | B23: Probability of complications from silent disease | C23: Treatment A | D23: 0.008 | E23: 0.008 | H23: gamma | I23: α | K23: b
A24: p_dead_sil | B24: Probability of death from chronic, silent disease | C24: Treatment A | D24: 0 | E24: 0
B26: Probability of silent disease from silent disease | C26: Treatment B | D26: NA | E26: 0.8914386584 | H26: gamma | I26: α | K26: b
A27: p_active | B27: Probability of active disease from silent disease | C27: Treatment B | D27: =IF(opt_modeltype=$E$2,E27,F27) -> 0.09267431598 | E27: 0.09267431598 | H27: gamma | I27: α | K27: b
A28: p_compl_sil | B28: Probability of complications from silent disease | C28: Treatment B | D28: 0.01412180053 | E28: 0.01412180053 | H28: gamma | I28: α | K28: b
A29: p_dead_sil | B29: Probability of death from chronic, silent disease | C29: Treatment B | D29: 0.001765225066 | E29: 0.001765225066 | H29: gamma | I29: α | K29: b
A31: p_success | B31: Probability of silent disease from active disease | C31: Treatment A | D31: =IF(opt_modeltype=$E$2,E31,F31) -> 0.1846153846 | E31: 0.1846153846 | H31: gamma | I31: α | K31: b
B32: Probability of active disease from active disease | C32: Treatment A | D32: NA | E32: 0.6769230769 | H32: gamma | I32: α | K32: b
A33: p_compl_act | B33: Probability of complications from active disease | C33: Treatment A | D33: =IF(opt_modeltype=$E$2,E33,F33) -> 0.1230769231 | E33: 0.1230769231 | H33: gamma | I33: α | K33: b
A34: p_dead_act | B34: Probability of death from chronic, active disease | C34: Treatment A | D34: 0.01538461538 | E34: 0.01538461538 | H34: gamma | I34: α | K34: b
A36: p_success | B36: Probability of silent disease from active disease | C36: Treatment B | D36: =IF(opt_modeltype=$E$2,E36,F36) -> 0.2119047619 | E36: 0.2119047619 | H36: gamma | I36: α | K36: b
B37: Probability of active disease from active disease | C37: Treatment B | D37: NA | E37: 0.6892857143 | H37: gamma | I37: α | K37: b
A38: p_compl_act | B38: Probability of complications from active disease | C38: Treatment B | D38: =IF(opt_modeltype=$E$2,E38,F38) -> 0.09761904762 | E38: 0.09761904762 | H38: gamma | I38: α | K38: b
A39: p_dead_act | B39: Probability of death from chronic, active disease | C39: Treatment B | D39: 0.00119047619 | E39: 0.00119047619 | H39: gamma | I39: α | K39: b
A41: Parameter | B41: Description | C41: Refers to | D41: Value Used | E41: Deterministic | F41: Stochastic | G41: Random | H41: Dist | I41: Param1 | K41: Param2 | M41: Calc | N41: Mean | O41: SD | P41: Mean | Q41: SD
A42: p_dead_cmp | B42: Probability of death from complications state | C42: Common | D42: =IF(opt_modeltype=$E$2,E42,F42) -> 0.003494060098 | E42: 0.003494060098 | F42: =BETAINV(G42,J42,L42) -> 0.002706509549 | G42: =RAND() -> 0.3458093116 | H42: beta | I42: α | J42: 5 | K42: b | L42: 1426 | P42: =J42/(J42+L42) -> 0.003494060098 | Q42: =(J42*L42/((J42+L42)^2*(J42+L42+1)))^0.5 -> 0.001559314158

Sheet Sheet3

Sheet Sheet1

Sheet Sheet2
